bitfinex-derivatives/quotes_ETHF0:USTF0_20241018
["timestamp","ask_amount","ask_price","bid_price","bid_amount"]
[1729215246752,0.3888,2618.4,2618.1,3.2078]
[1729215246958,3.2078,2619.1,2618.3,2.98]
[1729215247163,0.3963,2618.9,2618.8,0.38195]
[1729215247354,0.3912,2619.2,2618.8,0.38195]
[1729215247658,0.3912,2619.2,2618.9,3.2078]
[1729215247659,0.77309,2619.2,2618.9,3.2078]
[1729215248257,0.3912,2619.2,2618.9,3.2078]
[1729215249561,0.77309,2619.2,2618.9,3.2078]
[1729215250749,0.3819,2619.1,2618.9,3.2078]
[1729215251155,0.38192,2619.0,2618.9,3.2078]
[1729215251357,0.3912,2619.2,2618.9,3.2078]
[1729215251565,0.38192,2619.0,2618.9,3.2078]
[1729215251760,0.38191,2619.1,2618.9,3.2078]
[1729215251961,0.38192,2619.0,2618.9,3.2078]
[1729215252162,0.3912,2619.2,2618.9,3.2078]
[1729215252353,0.3819,2619.1,2618.9,3.2078]
[1729215253662,0.3912,2619.2,2618.9,3.2078]
[1729215253864,0.38192,2619.0,2618.9,3.2078]
[1729215254263,0.3912,2619.2,2618.9,3.2078]
[1729215254858,0.38192,2619.0,2618.9,3.2078]
[1729215256574,0.38192,2619.0,2618.8,3.2078]
[1729215256869,0.3912,2619.2,2618.8,3.2078]
[1729215257061,0.38193,2618.9,2618.8,3.2078]
[1729215257264,0.38192,2619.0,2618.8,3.2078]
[1729215259374,0.3912,2619.2,2618.8,3.2078]
[1729215259572,0.38192,2619.0,2618.8,3.2078]
[1729215259873,0.38186,2619.4,2618.9,0.38193]
[1729215260071,0.38186,2619.4,2618.7,5.02308]
[1729215260072,0.38186,2619.4,2619.3,3.2078]
[1729215260869,0.4164,2619.7,2619.3,3.2078]
[1729215261072,0.38185,2619.5,2619.3,3.2078]
[1729215261281,0.38184,2619.6,2619.3,3.58967]
[1729215261470,0.4164,2619.7,2619.3,3.58967]
[1729215261663,0.38183,2619.6,2619.3,3.58967]
[1729215261869,0.38185,2619.5,2619.3,3.2078]
[1729215262971,0.4164,2619.7,2619.3,3.2078]
[1729215263178,0.38185,2619.5,2619.3,3.2078]
[1729215263871,0.38181,2619.8,2619.5,0.38183]
[1729215264079,0.418,2619.9,2619.6,3.2078]
[1729215264265,0.4278,2620.2,2619.6,6.8778]
[1729215264469,0.4278,2620.2,2619.9,3.2078]
[1729215264677,0.38177,2620.0,2619.9,3.2078]
[1729215264871,0.4278,2620.2,2619.9,3.2078]
[1729215265077,0.80955,2620.2,2619.9,3.2078]
[1729215265377,0.4278,2620.2,2619.9,3.58958]
[1729215265575,0.38176,2620.1,2619.9,3.2078]
[1729215266175,0.4278,2620.2,2619.9,3.2078]
[1729215266479,0.80955,2620.2,2619.9,3.2078]
[1729215266780,0.4278,2620.2,2619.9,3.2078]
[1729215266971,0.38176,2620.1,2619.9,3.2078]
[1729215267478,0.4278,2620.2,2619.9,3.2078]
[1729215267683,0.38177,2620.0,2619.9,3.2078]
[1729215270273,0.4278,2620.2,2619.7,0.4159]
[1729215270468,0.4278,2620.2,2620.0,3.2078]
[1729215270469,0.38176,2620.1,2620.0,3.2078]
[1729215271182,0.4278,2620.2,2619.7,0.79771]
[1729215271384,0.38179,2619.9,2619.8,3.5896]
[1729215271581,0.4278,2620.2,2619.8,3.2078]
[1729215271985,0.38178,2619.9,2619.8,3.2078]
[1729215272784,0.38178,2619.9,2619.3,2.08666]
[1729215272785,0.38183,2619.6,2619.5,3.2078]
[1729215274591,0.4264,2619.7,2619.5,3.58964]
[1729215274777,44.0078,2620.5,2619.6,3.8176]
[1729215275082,0.38178,2619.9,2619.8,3.2078]
[1729215275284,0.38178,2620.0,2619.8,3.5896]
[1729215276281,0.38178,2619.9,2619.8,3.2078]
[1729215276685,0.4235,2620.1,2619.5,6.1878]
[1729215276987,0.4235,2620.1,2619.6,0.38182]
[1729215277190,0.38179,2619.9,2619.6,0.38183]
[1729215277686,0.38179,2619.9,2619.6,0.38181]
[1729215277885,0.38179,2619.9,2619.5,6.1878]
[1729215278090,0.38178,2620.0,2619.8,0.38179]
[1729215278287,0.38178,2620.0,2619.7,3.3618]
[1729215278589,0.38178,2620.0,2619.8,3.2078]
[1729215278789,0.38178,2620.0,2619.8,3.5896]
[1729215279389,0.38178,2620.0,2619.8,3.2078]
[1729215279792,0.4075,2620.2,2619.8,3.2078]
[1729215279988,0.38176,2620.1,2619.8,3.58959]
[1729215280491,0.4075,2620.2,2619.9,0.38178]
[1729215280989,0.38176,2620.1,2619.9,0.38178]
[1729215281189,0.38176,2620.1,2619.8,3.58959]
[1729215281782,0.38176,2620.1,2619.8,3.2078]
[1729215281983,0.38176,2620.1,2619.9,0.38178]
[1729215282179,0.4075,2620.2,2619.8,3.2078]
[1729215282586,0.38178,2620.0,2619.8,3.2078]
[1729215283391,0.4247,2619.9,2619.8,3.5896]
[1729215283594,0.4247,2619.9,2619.8,3.2078]
[1729215283979,0.4247,2619.9,2619.8,3.5896]
[1729215285989,0.4247,2619.9,2619.5,2.98]
[1729215286195,0.4247,2619.9,2619.8,3.2078]
[1729215286396,0.4247,2619.9,2619.8,3.5896]
[1729215287689,0.4247,2619.9,2619.8,0.3818]
[1729215287889,0.4247,2619.9,2619.8,3.5896]
[1729215288398,0.4247,2619.9,2619.8,0.3818]
[1729215288593,0.4247,2619.9,2619.8,3.2078]
[1729215288897,0.4247,2619.9,2619.8,3.5896]
[1729215289099,0.4247,2619.9,2619.8,3.2078]
[1729215289285,0.4247,2619.9,2619.8,3.5896]
[1729215290389,0.80648,2619.9,2619.8,3.2078]
[1729215290695,0.4247,2619.9,2619.8,3.2078]
[1729215291296,0.38176,2620.1,2619.8,3.2078]
[1729215291596,0.78925,2620.2,2619.9,0.38178]
[1729215291804,0.78925,2620.2,2619.9,0.38177]
[1729215291995,0.38176,2620.1,2619.9,0.4217]
[1729215292193,0.38176,2620.1,2619.9,0.80348]
[1729215292505,0.38176,2620.1,2619.9,0.4217]
[1729215292800,0.38176,2620.1,2619.9,0.80348]
[1729215293393,0.78925,2620.2,2619.9,0.4217]
[1729215293596,0.78925,2620.2,2619.9,0.80348]
[1729215294594,0.4075,2620.2,2619.9,0.80348]
[1729215294803,0.78925,2620.2,2619.9,0.80348]
[1729215295795,0.78925,2620.2,2619.9,0.4217]
[1729215295995,0.78925,2620.2,2620.0,0.38177]
[1729215296405,0.78925,2620.2,2619.9,0.8466]
[1729215296406,0.4075,2620.2,2619.9,0.8466]
[1729215296906,0.4075,2620.2,2620.1,0.38176]
[1729215297297,3.2078,2620.6,2620.1,0.38176]
[1729215297499,0.3876,2620.5,2619.9,1.2399]
[1729215298006,0.38174,2620.3,2620.0,0.38177]
[1729215298501,0.38172,2620.4,2620.1,0.38175]
[1729215299500,0.38174,2620.3,2620.0,0.38176]
[1729215299802,0.38174,2620.3,2619.9,1.2399]
[1729215299803,0.38174,2620.3,2620.1,0.38175]
[1729215299996,0.38174,2620.3,2620.0,0.38176]
[1729215300202,0.38174,2620.3,2620.1,0.38175]
[1729215300405,0.38173,2620.3,2619.9,1.2399]
[1729215300794,0.38173,2620.3,2620.1,0.38175]
[1729215301404,0.3876,2620.5,2620.1,3.2078]
[1729215301604,0.3876,2620.5,2619.9,1.2399]
[1729215301605,0.3876,2620.5,2620.4,3.58951]
[1729215301901,0.3876,2620.5,2620.4,3.2078]
[1729215302100,0.3876,2620.5,2620.4,3.58951]
[1729215303329,2.98,2621.2,2620.4,6.6164]
[1729215303533,0.81123,2621.0,2620.7,3.58946]
[1729215303729,0.4296,2621.0,2620.7,3.58946]
[1729215303935,0.4229,2620.9,2620.7,3.58946]
[1729215304139,0.4229,2620.9,2620.7,3.2078]
[1729215304644,0.4229,2620.9,2620.7,3.58947]
[1729215305246,3.4029,2620.9,2620.7,3.2078]
[1729215305422,0.38165,2620.8,2620.7,3.2078]
[1729215305629,0.38165,2620.8,2620.5,0.38169]
[1729215305829,0.4229,2620.9,2620.5,2.98]
[1729215306035,0.4229,2620.9,2620.7,0.38166]
[1729215306933,3.2078,2621.3,2620.7,2.98]
[1729215307138,0.428,2621.2,2621.0,3.2078]
[1729215307344,3.6025,2621.6,2621.1,3.4087]
[1729215307653,0.38159,2621.3,2621.1,3.4087]
[1729215307844,0.8357,2621.5,2621.1,3.4087]
[1729215308141,0.38157,2621.4,2621.1,3.4087]
[1729215308429,0.8357,2621.5,2621.1,3.4087]
[1729215308534,0.8357,2621.5,2621.1,3.7903]
[1729215308735,0.38158,2621.3,2621.1,3.4087]
[1729215308934,0.38158,2621.3,2621.1,0.4287]
[1729215309130,0.8357,2621.5,2621.1,0.4287]
[1729215309417,0.8357,2621.5,2621.0,3.2078]
[1729215309744,0.38161,2621.2,2620.8,0.38165]
[1729215309940,0.38162,2621.1,2621.0,3.2078]
[1729215310343,0.3816,2621.2,2621.0,3.2078]
[1729215310533,1.21725,2621.5,2621.2,0.38159]
[1729215310751,0.8357,2621.5,2621.4,2.98]
[1729215310940,0.428,2621.5,2621.4,3.36157]
[1729215311141,0.428,2621.5,2621.3,3.58937]
[1729215311350,0.428,2621.5,2621.3,3.2078]
[1729215311545,0.428,2621.5,2621.3,3.58937]
[1729215312337,0.428,2621.5,2620.8,0.95412]
[1729215312338,4.6566,2621.4,2620.9,3.2078]
[1729215312644,4.6566,2621.4,2620.8,2.98]
[1729215312645,0.38161,2621.2,2620.8,3.36165]
[1729215312947,0.8422,2621.4,2621.0,2.98]
[1729215313180,0.8422,2621.4,2621.1,0.3816]
[1729215313454,1.22377,2621.4,2621.0,0.80752]
[1729215313642,0.8422,2621.4,2621.0,0.4259]
[1729215313839,3.8222,2621.4,2620.9,3.2078]
[1729215314148,3.2078,2621.2,2620.6,3.2078]
[1729215314441,0.38167,2620.7,2620.6,3.2078]
[1729215315035,0.38166,2620.8,2620.6,3.2078]
[1729215315246,0.38167,2620.7,2620.6,3.2078]
[1729215318641,0.3817,2620.5,2620.4,2.98]
[1729215318840,0.38171,2620.4,2620.3,3.2078]
[1729215319045,0.81111,2620.4,2620.3,3.2078]
[1729215321852,0.4294,2620.4,2620.0,3.2078]
[1729215322153,0.38178,2619.9,2619.8,0.4277]
[1729215323749,2.98,2620.0,2619.7,3.2078]
[1729215323953,2.98,2619.8,2619.3,0.3889]
[1729215324157,0.38189,2619.2,2619.1,0.98027406]
[1729215324854,4.20029,2619.2,2619.1,0.98027406]
[1729215325641,0.3819,2619.1,2618.8,3.5967]
[1729215326108,0.7696,2619.2,2618.8,3.97864]
[1729215326460,0.38191,2619.1,2618.8,3.5967]
[1729215326657,0.3877,2619.2,2618.8,3.2078]
[1729215326658,3.3677,2619.2,2618.8,3.2078]
[1729215327123,0.38193,2618.9,2618.8,3.2078]
[1729215327354,0.38198,2618.6,2618.5,3.2078]
[1729215327549,0.38199,2618.5,2618.4,4.68765144]
[1729215327750,0.80269,2618.5,2618.4,4.68765144]
[1729215328343,0.4207,2618.5,2618.4,4.68765144]
[1729215328951,0.4207,2618.5,2618.3,4.68791317]
[1729215329159,3.362,2618.4,2618.3,4.68791317]
[1729215329460,7.1812,2618.4,2618.3,4.04281317]
[1729215329656,13.5761,2618.4,2618.3,4.04281317]
[1729215330151,10.2141,2618.4,2618.3,4.04281317]
[1729215330353,4.2141,2618.4,2618.3,4.04281317]
[1729215330552,3.8192,2618.4,2618.3,4.04281317]
[1729215330777,0.8469,2618.5,2618.3,4.42483317]
[1729215330954,1.49150212,2618.4,2618.3,4.04281317]
[1729215331652,1.49150212,2618.4,2618.3,4.42483317]
[1729215331750,1.49150212,2618.4,2618.3,17.22403317]
[1729215332944,1.98866949,2618.7,2618.6,0.38197]
[1729215333140,1.98866949,2618.7,2618.6,6.56977]
[1729215333141,1.59086949,2618.7,2618.6,6.56977]
[1729215333361,0.77674,2619.6,2619.0,0.38192]
[1729215333560,0.3885,2619.6,2619.0,6.56972]
[1729215333763,0.4222,2619.9,2619.0,16.0062]
[1729215334054,0.4222,2619.9,2619.5,0.38184]
[1729215334254,0.4222,2619.9,2619.5,0.38183]
[1729215334446,0.4222,2619.9,2619.6,0.38183]
[1729215334653,11.86297161,2620.1,2619.6,3.58963]
[1729215334654,3.48017161,2620.1,2619.6,3.58963]
[1729215334858,3.48017161,2620.1,2619.6,13.40723]
[1729215335053,3.48017161,2620.1,2619.6,3.58963]
[1729215336342,3.86193161,2620.1,2619.6,3.58963]
[1729215336539,3.48017161,2620.1,2619.6,3.58963]
[1729215336756,0.38175,2620.2,2619.9,0.38177]
[1729215336956,0.38177,2620.1,2619.8,0.38179]
[1729215337259,3.67,2620.2,2619.6,3.2078]
[1729215337457,0.38178,2620.0,2619.7,0.38181]
[1729215337661,0.3818,2619.8,2619.6,3.58962]
[1729215337866,0.3818,2619.8,2619.6,3.2078]
[1729215338052,0.3941,2620.1,2619.4,0.4093]
[1729215338277,0.38179,2619.9,2619.6,0.38182]
[1729215338949,0.3941,2620.1,2619.3,3.2078]
[1729215339159,0.38179,2619.9,2619.3,3.2078]
[1729215339361,0.3941,2620.1,2619.3,3.2078]
[1729215339558,0.38181,2619.8,2619.4,0.38185]
[1729215339761,0.3818,2619.8,2619.4,0.38185]
[1729215339955,0.3818,2619.8,2619.3,3.2078]
[1729215340150,0.3818,2619.8,2619.4,0.38185]
[1729215340367,0.3818,2619.8,2619.4,0.38184]
[1729215340569,0.3818,2619.8,2619.4,0.38185]
[1729215340965,0.3818,2619.8,2619.5,0.38184]
[1729215341151,0.3818,2619.8,2619.4,0.38185]
[1729215341357,0.3818,2619.8,2619.3,3.2078]
[1729215341358,0.38182,2619.7,2619.3,3.2078]
[1729215341662,0.38182,2619.7,2619.3,3.58966]
[1729215341853,0.38182,2619.7,2619.4,0.38186]
[1729215342764,0.38182,2619.7,2619.3,3.2078]
[1729215342765,3.67,2619.7,2619.3,3.2078]
[1729215342960,0.38186,2619.4,2619.3,3.2078]
[1729215343542,0.4273,2619.6,2619.3,3.2078]
[1729215343543,0.38185,2619.5,2619.3,3.2078]
[1729215343741,0.4273,2619.6,2619.3,3.2078]
[1729215344150,0.4273,2619.6,2619.3,3.58966]
[1729215344448,0.4273,2619.6,2619.3,3.2078]
[1729215344644,0.4273,2619.6,2619.3,3.58966]
[1729215345040,0.80913,2619.6,2619.3,3.58966]
[1729215345632,0.4273,2619.6,2619.3,3.2078]
[1729215346041,0.4273,2619.6,2619.4,0.38185]
[1729215347643,0.38185,2619.5,2619.3,3.2078]
[1729215348337,3.67,2619.4,2618.8,3.2078]
[1729215348538,3.67,2619.4,2618.6,0.38197]
[1729215348539,0.38193,2618.9,2618.6,0.38197]
[1729215348933,3.2078,2619.3,2618.5,3.6239]
[1729215349140,3.67,2618.9,2618.5,3.2078]
[1729215349344,0.77906,2618.8,2618.5,3.2078]
[1729215349546,0.38196,2618.7,2618.5,3.2078]
[1729215349743,0.77905,2618.8,2618.5,3.58978]
[1729215350440,44.61349442,2619.2,2618.7,0.38196]
[1729215350639,0.4035,2619.1,2618.8,0.38193]
[1729215350839,0.4035,2619.1,2618.5,3.2078]
[1729215351043,0.4035,2619.1,2618.8,3.2078]
[1729215351346,1.53085,2619.5,2619.2,0.38189]
[1729215351547,1.53085,2619.5,2619.0,0.38191]
[1729215351548,0.38187,2619.3,2619.0,0.38191]
[1729215351749,0.38185,2619.5,2619.1,0.38189]
[1729215352243,0.4035,2619.6,2619.1,3.2078]
[1729215352749,0.38186,2619.4,2619.1,3.58969]
[1729215352946,4.0735,2619.6,2618.7,3.2078]
[1729215353245,0.38195,2618.8,2618.7,3.2078]
[1729215353645,6.6835057,2618.8,2618.7,3.2078]
[1729215353947,6.3015557,2618.8,2618.7,3.2078]
[1729215354151,2.4831557,2618.8,2618.7,3.2078]
[1729215354335,2.4831557,2618.9,2618.7,3.2078]
[1729215354541,4.0499757,2619.0,2618.7,3.2078]
[1729215354741,1.1849,2619.0,2618.7,3.2078]
[1729215354951,0.38193,2618.9,2618.7,3.2078]
[1729215355148,1.1849,2619.0,2618.7,3.2078]
[1729215355346,0.7934,2619.0,2618.7,3.2078]
[1729215355539,0.7934,2619.0,2618.9,0.38193]
[1729215356044,0.7934,2619.0,2618.7,3.2078]
[1729215356237,0.7934,2619.0,2618.8,0.38195]
[1729215356442,0.7934,2619.0,2618.7,3.2078]
[1729215356748,0.7934,2619.0,2618.8,0.38193]
[1729215356944,0.7934,2619.0,2618.9,0.38193]
[1729215357744,2.4831557,2619.4,2618.7,3.2078]
[1729215357938,0.4128,2619.5,2619.0,3.2078]
[1729215358342,0.38186,2619.4,2619.1,0.3819]
[1729215358950,2.8959557,2619.5,2619.0,3.2078]
[1729215359139,0.79465,2619.5,2619.2,0.38188]
[1729215360450,0.4025,2619.6,2619.3,3.2078]
[1729215360640,0.78433,2619.6,2619.3,3.58967]
[1729215361039,0.4025,2619.6,2619.4,0.38186]
[1729215361238,0.4025,2619.6,2619.4,0.38185]
[1729215361635,0.4025,2619.6,2619.5,0.38184]
[1729215361840,2.48891466,2619.7,2619.3,6.8778]
[1729215362037,2.48891466,2619.7,2619.6,3.58963]
[1729215362242,2.48891466,2619.8,2619.6,3.2078]
[1729215362443,2.48891466,2619.8,2619.7,0.38181]
[1729215362844,2.48891466,2619.9,2619.6,3.2078]
[1729215363042,2.48891466,2619.9,2619.8,0.3818]
[1729215363246,3.67,2620.1,2619.6,3.2078]
[1729215363442,2.48957347,2619.7,2619.6,3.2078]
[1729215363651,0.3818,2619.8,2619.6,3.2078]
[1729215364849,0.4142,2619.9,2619.6,3.2078]
[1729215365048,0.38181,2619.8,2619.6,3.2078]
[1729215365951,0.38181,2619.7,2619.6,3.2078]
[1729215366343,3.39339442,2619.9,2619.6,3.2078]
[1729215366547,0.38181,2619.7,2619.6,3.2078]
[1729215366752,3.36100442,2619.7,2619.6,3.2078]
[1729215366952,7.17860442,2619.7,2619.6,3.2078]
[1729215367756,4.19941,2619.7,2619.6,3.2078]
[1729215368757,0.38187,2619.4,2619.2,3.2078]
[1729215368962,0.38187,2619.3,2619.2,3.2078]
[1729215369160,3.37487811,2619.4,2619.2,3.2078]
[1729215369862,0.38185,2619.5,2619.2,3.58968]
[1729215370851,2.49442729,2619.3,2619.2,3.58968]
[1729215371057,0.38185,2619.5,2619.2,3.58968]
[1729215372153,2.99300811,2619.6,2619.2,3.2078]
[1729215372356,0.38187,2619.3,2619.2,3.2078]
[1729215372546,0.77265,2619.5,2619.2,3.2078]
[1729215372753,0.38186,2619.4,2619.2,3.2078]
[1729215372948,3.76565811,2619.5,2619.2,3.58968]
[1729215373157,0.77265,2619.5,2619.2,3.58968]
[1729215373346,0.38186,2619.4,2619.2,3.2078]
[1729215373548,0.79586,2619.4,2619.2,3.2078]
[1729215373957,0.79587,2619.4,2619.2,3.2078]
[1729215374159,0.414,2619.4,2619.2,3.2078]
[1729215374359,0.414,2619.4,2619.2,3.58968]
[1729215374655,0.38187,2619.3,2619.2,3.2078]
[1729215375051,0.414,2619.4,2619.2,3.2078]
[1729215375253,6.36380811,2619.5,2619.2,3.2078]
[1729215375254,2.99300811,2619.5,2619.2,3.2078]
[1729215375461,2.99300811,2619.6,2619.4,0.38186]
[1729215375650,2.99300811,2619.6,2619.2,3.2078]
[1729215375849,0.38185,2619.5,2619.2,3.58968]
[1729215376154,2.99300811,2619.5,2619.3,0.38187]
[1729215376360,2.99300811,2619.6,2619.2,3.2078]
[1729215376551,2.99300811,2619.6,2619.5,3.2078]
[1729215376751,3.88089871,2619.8,2619.6,0.38181]
[1729215376752,0.4053,2619.8,2619.6,0.38181]
[1729215377850,0.80069,2619.9,2619.7,0.38181]
[1729215377851,0.4189,2619.9,2619.7,0.38181]
[1729215378050,0.4189,2619.9,2619.5,3.2078]
[1729215378051,2.99300811,2620.1,2619.8,3.2078]
[1729215378254,0.3894,2620.2,2620.0,0.38176]
[1729215378255,3.38240811,2620.2,2620.0,0.38176]
[1729215378446,0.3894,2620.2,2620.0,0.38177]
[1729215378857,0.3894,2620.2,2619.9,0.4228]
[1729215379057,0.3894,2620.2,2620.0,0.38177]
[1729215379257,0.3894,2620.2,2619.9,0.4228]
[1729215379445,0.77115,2620.2,2619.9,0.80458]
[1729215379650,0.38176,2620.1,2619.9,0.4228]
[1729215379854,0.3894,2620.2,2619.8,3.2078]
[1729215380048,0.3894,2620.2,2619.9,0.38178]
[1729215380258,0.3894,2620.2,2619.8,3.2078]
[1729215380459,0.3894,2620.2,2620.0,0.38176]
[1729215381661,0.3894,2620.2,2619.8,3.6111]
[1729215381856,2.496597,2619.9,2619.8,3.99289]
[1729215384048,2.496597,2619.9,2619.8,0.78509]
[1729215384252,2.496597,2619.9,2619.8,3.99289]
[1729215384857,3.47559871,2619.9,2619.8,3.9929]
[1729215385366,3.47559871,2619.9,2619.8,16.7897]
[1729215385575,3.47559871,2620.2,2619.8,16.4079]
[1729215385856,2.99457288,2620.3,2620.2,0.38174]
[1729215386060,3.47559871,2620.6,2620.3,0.3973]
[1729215386261,3.47559871,2620.6,2620.5,3.5895]
[1729215386451,3.47559871,2620.7,2620.6,0.38168]
[1729215386849,3.47559871,2620.7,2620.6,13.17768]
[1729215387553,2.76769871,2620.7,2620.6,13.17768]
[1729215387864,5.23064229,2620.7,2620.6,13.86768]
[1729215388756,7.22244502,2620.7,2620.6,13.86768]
[1729215389153,4.48374631,2620.7,2620.6,13.86768]
[1729215390455,4.48374631,2620.7,2620.6,4.19768]
[1729215390655,4.48374631,2620.7,2620.6,0.38168]
[1729215390960,0.38163,2621.0,2620.8,0.38165]
[1729215391150,0.38163,2621.0,2620.9,3.2078]
[1729215393856,0.8261,2621.2,2620.9,3.2078]
[1729215394061,0.38161,2621.1,2620.9,3.2078]
[1729215394256,0.38162,2621.1,2620.9,3.2078]
[1729215394759,0.4063,2621.5,2620.9,6.8778]
[1729215395065,0.4063,2621.5,2621.3,0.38157]
[1729215395362,0.38157,2621.4,2621.2,3.2078]
[1729215395661,0.4063,2621.5,2621.2,3.2078]
[1729215395867,0.78786,2621.5,2621.2,3.58939]
[1729215396051,0.38157,2621.4,2621.2,3.2078]
[1729215396256,0.4063,2621.5,2621.2,3.2078]
[1729215396455,0.38158,2621.3,2621.2,3.2078]
[1729215396657,0.4063,2621.5,2621.2,3.2078]
[1729215396959,0.78787,2621.5,2621.2,3.2078]
[1729215397367,0.4063,2621.5,2621.2,3.2078]
[1729215397662,0.38158,2621.3,2621.2,3.2078]
[1729215397854,0.4063,2621.5,2621.2,3.2078]
[1729215398063,0.38158,2621.4,2621.2,3.2078]
[1729215398254,0.38158,2621.3,2621.2,3.2078]
[1729215399354,0.38158,2621.3,2620.4,2.14528]
[1729215399355,3.8152,2621.3,2620.9,3.2078]
[1729215399657,2.48154474,2621.0,2620.9,3.2078]
[1729215399853,0.8109,2621.2,2620.9,3.2078]
[1729215400056,0.4265,2621.0,2620.9,3.2078]
[1729215400256,0.4265,2621.0,2620.9,3.58944]
[1729215400465,2.90851421,2621.0,2620.9,3.58944]
[1729215402462,2.90851421,2621.0,2620.9,3.2078]
[1729215402657,11.19578,2621.0,2620.2,4.47473]
[1729215402861,0.38172,2620.4,2620.1,0.38175]
[1729215403154,3.2078,2620.8,2620.0,0.38177]
[1729215403155,2.48315167,2620.3,2620.0,0.38177]
[1729215403354,2.86490167,2620.2,2620.0,0.38177]
[1729215403873,2.86490167,2620.2,2619.8,6.8778]
[1729215403874,2.48315167,2620.2,2619.8,6.8778]
[1729215404173,2.48315167,2620.1,2619.8,3.5896]
[1729215404366,2.48315167,2620.0,2619.8,3.5896]
[1729215404669,2.48315167,2620.0,2619.9,0.38178]
[1729215405059,2.48315167,2620.0,2619.8,3.2078]
[1729215405370,2.48315167,2620.0,2619.9,0.38178]
[1729215405572,2.48315167,2620.0,2619.8,3.2078]
[1729215405763,2.48315167,2620.0,2619.8,3.58959]
[1729215405967,2.86493167,2620.0,2619.8,3.58959]
[1729215406164,2.48315167,2619.9,2619.8,3.58959]
[1729215406968,0.38176,2620.1,2619.8,3.2078]
[1729215407468,2.32707099,2620.3,2619.8,3.2078]
[1729215407771,0.38175,2620.2,2620.0,0.38176]
[1729215407974,1.87312099,2620.2,2620.0,0.38176]
[1729215408481,2.32707099,2620.3,2620.0,2.98]
[1729215408973,2.32707099,2620.3,2620.2,0.38174]
[1729215409268,2.70880099,2620.3,2620.2,0.38174]
[1729215409468,2.32707099,2620.3,2620.2,0.38174]
[1729215409777,2.70880099,2620.3,2620.1,0.38175]
[1729215409975,2.32707099,2620.3,2620.2,0.38174]
[1729215410668,2.32707099,2620.3,2620.0,2.98]
[1729215410866,0.38178,2620.0,2619.8,3.58959]
[1729215411474,1.87315099,2620.0,2619.8,3.58959]
[1729215411778,0.38178,2620.0,2619.8,3.58959]
[1729215412072,0.38183,2619.6,2619.4,0.38185]
[1729215412276,1.87382898,2619.8,2619.6,0.38182]
[1729215412575,1.49201898,2619.8,2619.7,0.38181]
[1729215412767,1.49201898,2619.9,2619.8,0.3818]
[1729215413077,1.49201898,2620.0,2619.9,0.38178]
[1729215413283,1.49201898,2620.2,2619.9,6.1878]
[1729215413571,1.49201898,2620.4,2620.1,2.98]
[1729215413779,1.87373898,2620.4,2620.2,0.38174]
[1729215414071,1.98849466,2620.3,2620.2,0.38174]
[1729215415169,1.98849466,2620.3,2620.0,0.4192]
[1729215415468,1.98849466,2620.1,2619.7,2.98]
[1729215415669,5.19629466,2619.9,2619.2,0.4016]
[1729215415879,0.38187,2619.3,2619.1,0.38189]
[1729215416065,1.98849466,2619.3,2619.1,0.3819]
[1729215416269,0.8131,2619.3,2619.2,0.38189]
[1729215416463,2.80394557,2619.3,2619.2,0.38189]
[1729215417374,2.40524557,2619.3,2619.2,0.38189]
[1729215417968,1.99084557,2619.3,2619.2,10.19949]
[1729215419582,1.99084557,2619.3,2619.2,10.62759]
[1729215420472,1.99084557,2619.3,2619.2,13.83539]
[1729215420676,1.99084557,2619.4,2619.3,0.38187]
[1729215420876,0.4119,2619.7,2619.4,0.38186]
[1729215420877,1.99084557,2619.5,2619.4,0.38186]
[1729215421179,1.99084557,2619.6,2619.5,0.38184]
[1729215421379,1.99084557,2619.6,2619.5,6.38184]
[1729215421680,1.99084557,2619.7,2619.6,0.38183]
[1729215421876,3.58953,2620.3,2619.7,4.05181]
[1729215421877,1.99084557,2619.8,2619.7,4.05181]
[1729215422084,1.49374424,2620.2,2619.7,3.67]
[1729215422266,1.49374424,2620.2,2619.6,0.95456]
[1729215422267,1.49374424,2620.2,2620.1,4.05176]
[1729215423369,1.49374424,2620.2,2620.1,7.86856]
[1729215423766,1.49374424,2620.2,2620.1,4.05176]
[1729215424385,1.49374424,2620.2,2620.1,0.38176]
[1729215426273,2.37256557,2620.4,2620.1,0.38176]
[1729215426672,0.3818,2619.8,2619.7,3.2078]
[1729215426878,1.49452154,2619.9,2619.8,0.3818]
[1729215427175,1.99084557,2620.0,2619.8,0.3818]
[1729215427370,2.37262557,2620.0,2619.7,3.58961]
[1729215427574,1.49456099,2619.8,2619.7,3.58961]
[1729215428180,1.49456099,2619.9,2619.8,0.3818]
[1729215428378,0.38178,2620.0,2619.8,3.67]
[1729215428379,1.49456099,2620.0,2619.8,3.67]
[1729215428570,1.49445072,2620.0,2619.9,0.38178]
[1729215428984,0.4282,2620.1,2619.9,0.38178]
[1729215428985,1.99084557,2620.1,2619.9,9.8168]
[1729215429173,1.99084557,2620.1,2620.0,0.38177]
[1729215433288,0.3818,2619.8,2619.7,3.2078]
[1729215433885,0.7885,2619.8,2619.7,3.2078]
[1729215434087,3.28002391,2619.8,2619.7,3.2078]
[1729215434591,2.89822391,2619.8,2619.2,3.6225]
[1729215434780,2.37537299,2619.5,2619.3,0.38186]
[1729215435179,1.99352299,2619.4,2619.2,3.2078]
[1729215435380,1.99352299,2619.3,2619.0,0.38191]
[1729215435581,3.17911299,2619.2,2619.0,0.38191]
[1729215435784,2.79722299,2619.2,2618.9,0.38193]
[1729215435983,1.49545637,2619.0,2618.8,7.2925]
[1729215436285,1.49545637,2619.0,2618.9,0.38193]
[1729215436689,1.49545637,2619.0,2618.9,4.20033]